bitfinex/quotes_ETHUSD_20250731
["timestamp","ask_amount","ask_price","bid_price","bid_amount"]
[1753936856965,0.24053856,3867.7,3867.6,0.001]
[1753936857140,0.24053856,3867.9,3867.6,0.001]
[1753936857340,0.24053856,3867.8,3867.6,0.001]
[1753936857539,0.24053856,3867.7,3867.6,0.001]
[1753936857735,0.24053856,3867.9,3867.6,0.001]
[1753936857960,0.24053856,3867.8,3867.6,0.001]
[1753936858139,0.24053856,3867.7,3867.6,0.001]
[1753936859058,0.24053856,3867.9,3867.6,0.001]
[1753936859265,0.24053856,3867.8,3867.6,0.001]
[1753936859560,0.24053856,3867.7,3867.6,0.001]
[1753936860438,7.32459969,3869.8,3867.6,0.25975978]
[1753936860674,4.50781274,3869.5,3867.6,4.027]
[1753936860869,3.0,3869.2,3867.6,4.027]
[1753936861087,0.55,3869.0,3867.6,4.027]
[1753936861276,0.48181274,3868.9,3867.6,4.027]
[1753936861475,0.24090637,3868.8,3868.0,4.81859919]
[1753936861785,0.24104939,3868.7,3868.6,2.58486384]
[1753936861973,4.94801238,3870.1,3868.7,2.5848054]
[1753936862171,0.48209916,3870.0,3868.5,4.026]
[1753936862360,1.03209916,3869.9,3868.8,2.58472744]
[1753936862562,4.94801238,3870.1,3868.5,4.026]
[1753936862563,6.1987095,3869.8,3868.5,4.026]
[1753936862762,0.48209916,3869.7,3868.8,2.58474767]
[1753936862961,0.55,3869.5,3868.8,2.58474767]
[1753936863263,0.48209916,3869.4,3868.8,2.58476758]
[1753936863468,0.48209916,3869.3,3868.8,2.58476758]
[1753936863697,0.48209916,3869.2,3868.5,4.026]
[1753936863993,0.48209916,3869.1,3868.6,2.58489499]
[1753936864200,0.48209916,3869.0,3868.6,4.023]
[1753936864501,0.48209916,3868.9,3868.6,4.023]
[1753936864664,0.48209916,3868.8,3867.3,0.001]
[1753936864862,0.24104886,3868.7,3868.2,2.5851272]
[1753936865062,0.24104886,3868.6,3868.2,2.5851272]
[1753936865258,0.24104886,3868.5,3868.2,2.5851272]
[1753936865487,0.355,3869.4,3868.2,2.5851272]
[1753936865488,0.24104886,3868.4,3868.2,2.5851272]
[1753936865701,0.905,3869.4,3867.7,4.023]
[1753936865702,0.55,3869.3,3868.3,2.58506478]
[1753936865902,0.4829387,3869.2,3868.4,4.022]
[1753936866197,0.55,3869.0,3868.3,2.58506478]
[1753936866362,0.24146935,3868.9,3867.6,3.001]
[1753936866557,0.55,3869.0,3867.7,4.021]
[1753936866558,0.24146935,3868.8,3867.7,4.021]
[1753936866803,0.24146935,3868.7,3867.8,4.021]
[1753936867106,0.24146935,3868.6,3867.8,4.021]
[1753936867400,3.13466605,3869.0,3867.8,4.021]
[1753936867699,3.4121003,3868.9,3867.8,4.021]
[1753936867899,0.55,3868.7,3867.6,0.001]
[1753936868123,2.58509504,3868.4,3867.6,0.001]
[1753936868327,0.55,3868.3,3867.6,0.001]
[1753936868825,2.58509504,3868.4,3867.6,0.001]
[1753936868826,0.55,3868.4,3867.6,0.001]
[1753936869034,0.6134991,3868.3,3867.6,0.001]
[1753936869828,3.13526038,3868.1,3867.6,0.001]
[1753936869992,2.58537048,3868.0,3867.6,0.001]
[1753936870193,0.55,3867.9,3867.6,0.001]
[1753936870414,3.13540987,3867.9,3867.6,0.001]
[1753936870632,0.31354099,3867.8,3867.6,0.001]
[1753936870800,0.55,3867.7,3867.6,0.001]
[1753936871135,3.13551593,3867.7,3867.6,0.001]
[1753936872631,3.37764351,3867.7,3867.6,0.001]
[1753936872837,3.37764945,3867.7,3867.6,0.001]
[1753936873245,3.37764706,3867.7,3867.6,0.001]
[1753936873445,1.38843539,3867.7,3867.6,0.001]
[1753936873601,3.37764706,3867.7,3867.6,0.001]
[1753936875961,0.79213113,3867.7,3867.6,0.001]
[1753936877158,3.37764706,3867.7,3867.6,0.001]
[1753936877644,0.79213113,3867.7,3867.6,0.001]
[1753936877839,0.79203315,3867.7,3867.6,0.001]
[1753936878050,1.68831558,3867.7,3867.6,0.001]
[1753936878653,1.13831558,3867.7,3867.6,0.001]
[1753936878817,0.24203315,3867.7,3867.6,0.001]
[1753936879017,0.79203315,3868.2,3867.6,0.001]
[1753936879222,0.55,3868.0,3867.6,0.001]
[1753936879452,0.24203315,3867.9,3867.6,0.001]
[1753936879662,0.24203315,3867.8,3867.6,0.001]
[1753936879969,0.55,3868.2,3867.6,0.001]
[1753936880271,0.55,3868.0,3867.6,0.001]
[1753936880424,0.24198578,3867.9,3867.6,0.001]
[1753936881172,0.24198578,3867.8,3867.6,0.001]
[1753936881368,0.55,3868.0,3867.6,0.001]
[1753936881569,0.24198357,3867.9,3867.6,0.001]
[1753936881740,0.24198357,3867.8,3867.6,0.001]
[1753936881942,0.24198357,3867.7,3867.6,0.001]
[1753936883968,7.554,3868.6,3867.6,0.001]
[1753936884156,0.55,3868.4,3867.6,0.001]
[1753936884363,0.55,3868.2,3867.6,0.001]
[1753936884586,0.24197664,3868.1,3867.6,0.001]
[1753936884789,0.24197664,3868.0,3867.6,0.001]
[1753936884976,0.24197664,3867.9,3867.6,0.001]
[1753936885180,0.24197664,3867.8,3867.6,0.001]
[1753936885481,0.24197664,3867.7,3867.6,0.001]
[1753936891177,0.55,3868.3,3867.6,0.001]
[1753936891360,0.5555606,3868.2,3867.6,0.001]
[1753936891558,0.24205456,3868.1,3867.6,0.001]
[1753936891801,0.24205456,3868.0,3867.6,0.001]
[1753936892100,0.24205456,3867.9,3867.6,0.001]
[1753936892407,3.55,3868.8,3867.6,0.001]
[1753936892598,0.55,3868.6,3867.6,0.001]
[1753936892902,0.55,3868.6,3867.6,2.58656516]
[1753936892903,0.24203886,3868.5,3867.6,2.58656516]
[1753936893104,0.24203886,3868.4,3867.6,6.58156516]
[1753936893299,0.24203886,3868.3,3867.6,3.996]
[1753936893506,0.24203886,3868.2,3867.6,3.996]
[1753936893705,0.24203886,3868.1,3867.6,3.996]
[1753936893906,0.55,3868.7,3867.6,3.996]
[1753936894079,5.58478516,3868.8,3867.6,3.996]
[1753936894080,0.55,3868.5,3867.6,3.996]
[1753936894280,0.24205649,3868.4,3867.6,3.996]
[1753936894619,0.24205649,3868.3,3867.6,3.996]
[1753936894817,0.24205649,3868.2,3867.6,3.996]
[1753936895018,0.24205649,3868.1,3867.6,3.996]
[1753936895302,0.55,3868.5,3867.6,3.996]
[1753936895494,0.24207819,3868.4,3867.6,3.996]
[1753936895691,0.24207819,3868.3,3867.6,3.996]
[1753936895901,0.24207819,3868.2,3867.6,3.996]
[1753936896102,0.24207819,3868.1,3867.6,3.996]
[1753936896307,1.22482637,3868.5,3867.6,3.996]
[1753936896493,0.24208782,3868.4,3867.6,3.996]
[1753936896668,0.55,3868.6,3867.6,3.996]
[1753936896869,0.2420878,3868.5,3867.6,3.996]
[1753936897280,0.24210992,3868.4,3867.6,3.996]
[1753936897610,0.24210992,3868.3,3867.6,3.996]
[1753936897912,0.24210992,3868.2,3867.6,3.996]
[1753936898215,0.24210992,3868.1,3867.6,3.996]
[1753936898390,0.24210992,3868.0,3867.6,3.996]
[1753936898715,3.55,3868.7,3867.6,3.996]
[1753936898886,0.55,3868.5,3867.6,3.996]
[1753936899083,0.24216992,3868.4,3867.6,3.996]
[1753936899287,0.24216992,3868.3,3867.6,3.996]
[1753936899487,0.24216992,3868.2,3867.6,3.996]
[1753936899807,0.24216992,3868.1,3867.6,3.996]
[1753936900113,0.24222578,3868.0,3867.6,3.996]
[1753936900274,0.24222578,3867.9,3867.6,3.996]
[1753936900479,3.13492369,3868.6,3867.6,3.996]
[1753936900698,0.55573394,3868.5,3867.6,3.996]
[1753936900903,0.24224157,3868.4,3867.6,3.996]
[1753936901090,0.24224157,3868.3,3867.6,3.996]
[1753936901290,0.24224157,3868.2,3867.6,3.996]
[1753936901491,0.24224157,3868.1,3867.6,3.996]
[1753936901690,0.24224157,3868.0,3867.6,3.996]
[1753936901911,0.24224157,3867.9,3867.6,3.996]
[1753936902180,0.31349237,3868.5,3867.6,3.996]
[1753936902391,0.62858881,3868.4,3867.6,3.996]
[1753936902572,0.24223957,3868.3,3867.6,3.996]
[1753936902776,0.24223957,3868.2,3867.6,3.996]
[1753936903087,0.38634924,3868.4,3867.6,3.996]
[1753936903422,0.24223665,3868.3,3867.6,3.996]
[1753936903714,0.24223665,3868.2,3867.6,3.996]
[1753936904014,0.24223665,3868.1,3867.6,3.996]
[1753936904201,0.24223665,3868.0,3867.6,3.996]
[1753936904405,0.24223665,3867.9,3867.6,3.996]
[1753936904710,0.38634924,3868.4,3867.6,3.996]
[1753936904910,0.2422228,3868.3,3867.6,3.996]
[1753936905111,0.2422228,3868.2,3867.6,3.996]
[1753936905273,0.2422228,3868.1,3867.6,3.996]
[1753936905480,0.2422228,3868.0,3867.6,3.996]
[1753936905696,0.38634924,3868.4,3867.6,3.996]
[1753936905697,0.2422228,3867.9,3867.6,3.996]
[1753936906037,0.38634924,3868.4,3867.6,3.996]
[1753936906212,0.24224534,3868.3,3867.6,3.996]
[1753936906403,0.24224534,3868.2,3867.6,3.996]
[1753936906602,0.24224534,3868.1,3867.6,3.996]
[1753936906803,0.24224534,3868.0,3867.6,3.996]
[1753936907005,0.24224534,3867.9,3867.6,3.996]
[1753936907204,0.38634924,3868.4,3867.6,3.996]
[1753936907428,0.24232073,3868.3,3867.6,3.996]
[1753936907627,0.24232073,3868.2,3867.6,3.996]
[1753936907811,0.31349237,3868.5,3867.6,3.996]
[1753936907812,0.24232073,3868.1,3867.6,3.996]
[1753936908012,0.31349237,3868.5,3867.6,3.996]
[1753936908013,0.24232073,3868.0,3867.6,3.996]
[1753936908220,0.55,3868.6,3867.6,3.996]
[1753936908418,0.24236473,3868.5,3867.6,3.996]
[1753936908618,0.24236473,3868.4,3867.6,3.996]
[1753936908929,0.24236473,3868.3,3867.6,3.996]
[1753936909098,0.24236437,3868.2,3867.6,6.58157681]
[1753936909302,0.24236437,3868.1,3867.6,6.58157681]
[1753936909515,0.24236437,3868.0,3867.6,6.58157681]
[1753936909716,0.91821863,3868.6,3867.6,3.996]
[1753936909927,0.63420823,3868.5,3867.6,6.58156916]
[1753936910129,0.24238637,3868.4,3867.6,6.58155648]
[1753936910330,0.24238637,3868.3,3867.6,3.996]
[1753936910530,0.24238637,3868.2,3867.6,3.996]
[1753936910714,0.24238637,3868.1,3867.6,3.996]
[1753936910916,0.24238637,3868.0,3867.6,3.996]
[1753936911117,0.55,3868.7,3867.6,3.996]
[1753936911419,0.86909828,3868.6,3867.6,3.996]
[1753936911616,0.24240777,3868.5,3867.6,3.996]
[1753936911917,0.24240777,3868.4,3867.6,3.996]
[1753936912118,0.24240777,3868.3,3867.6,3.996]
[1753936912318,0.24240777,3868.2,3867.6,3.996]
[1753936912517,0.24240777,3868.1,3867.6,3.996]
[1753936912818,0.62669051,3868.6,3867.6,3.996]
[1753936912819,0.24240777,3868.0,3867.6,3.996]
[1753936913005,0.62669051,3868.6,3867.6,3.996]
[1753936913242,0.66009636,3868.5,3867.6,3.996]
[1753936913448,0.24242731,3868.4,3867.6,3.996]
[1753936913748,0.24242731,3868.3,3867.6,3.996]
[1753936914050,0.24242731,3868.2,3867.6,3.996]
[1753936914219,0.24242731,3868.1,3867.6,3.996]
[1753936914423,0.24242731,3868.0,3867.6,3.996]
[1753936914654,0.62669051,3868.6,3867.6,3.996]
[1753936914954,0.66011504,3868.5,3867.6,3.996]
[1753936915155,0.24244766,3868.4,3867.6,3.996]
[1753936915359,0.24244766,3868.3,3867.6,3.996]
[1753936915557,0.24244766,3868.2,3867.6,3.996]
[1753936915738,0.24244766,3868.1,3867.6,3.996]
[1753936915939,0.24244766,3868.0,3867.6,3.996]
[1753936916140,0.62669051,3868.6,3867.6,6.5815821]
[1753936916340,1.14207683,3868.5,3867.6,6.5815821]
[1753936916543,0.24245044,3868.4,3867.6,3.996]
[1753936916861,0.24245044,3868.3,3867.6,3.996]
[1753936917062,0.24245044,3868.2,3867.6,3.996]
[1753936917263,0.24245044,3868.1,3867.6,3.996]
[1753936917463,0.24245044,3868.0,3867.6,3.996]
[1753936917664,0.62669051,3868.6,3867.6,3.996]
[1753936917957,1.14208242,3868.5,3867.6,3.996]
[1753936918162,0.24245603,3868.4,3867.6,3.996]
[1753936918329,0.24245603,3868.3,3867.6,3.996]
[1753936918670,0.24245603,3868.2,3867.6,6.58157817]
[1753936918962,0.24245603,3868.1,3867.6,6.58157817]
[1753936919164,0.24245603,3868.0,3867.6,6.58157817]
[1753936919466,0.89962639,3868.5,3867.6,3.996]
[1753936919661,0.45007484,3868.4,3867.6,3.996]
[1753936919961,0.24244315,3868.3,3867.6,6.581574]
[1753936920161,0.24244315,3868.2,3867.6,3.996]
[1753936920363,0.24244315,3868.1,3867.6,6.58158193]
[1753936920660,0.24244315,3868.0,3867.6,6.58158193]
[1753936920883,0.89962639,3868.5,3867.6,3.996]
[1753936921050,0.24243296,3868.4,3867.6,3.996]
[1753936921252,0.24243296,3868.3,3867.6,6.58158213]
[1753936921452,0.24243296,3868.2,3867.6,3.996]
[1753936921687,0.24243296,3868.1,3867.6,6.58157455]
[1753936921883,0.24243296,3868.0,3867.6,3.996]
[1753936922083,0.89962639,3868.5,3867.6,3.996]
[1753936922286,0.24244142,3868.4,3867.6,3.996]
[1753936922584,0.24244142,3868.3,3867.6,3.996]
[1753936922756,0.24244142,3868.2,3867.6,4.34368964]
[1753936922961,0.24244142,3868.1,3868.0,2.5853154]
[1753936923161,0.24244142,3868.1,3868.0,6.5563154]
[1753936923558,0.24244142,3868.1,3868.0,3.971]
[1753936924255,0.24244142,3868.1,3868.0,4.62664215]
[1753936926196,0.55,3869.2,3868.0,4.62664215]
[1753936926395,0.24237185,3869.1,3868.0,7.21192926]
[1753936926568,0.24237185,3869.0,3868.0,4.62664215]
[1753936926899,0.24237185,3868.9,3868.1,0.72120011]
[1753936927196,0.24237185,3868.8,3868.1,0.72120011]
[1753936927364,0.24237185,3868.7,3868.1,0.72120011]
[1753936927564,4.81957334,3868.5,3868.0,3.971]
[1753936927772,4.81957334,3868.2,3868.0,3.971]
[1753936928064,0.24237185,3868.1,3868.0,3.971]
[1753936928264,0.24237185,3868.1,3867.8,3.968]
[1753936928466,0.24237185,3868.0,3867.8,3.968]
[1753936928766,0.24237185,3867.9,3867.8,3.968]
[1753936929386,0.55,3867.8,3867.6,0.001]
[1753936929566,0.24237185,3867.7,3867.6,0.001]
[1753936930660,3.55,3868.4,3867.6,0.001]
[1753936930861,1.39279662,3868.3,3867.6,0.001]
[1753936931059,0.24234191,3868.2,3867.6,0.001]
[1753936931272,0.24234191,3868.1,3867.6,0.001]
[1753936931472,0.24234191,3868.0,3867.6,0.001]
[1753936931673,0.24234191,3867.9,3867.6,0.001]
[1753936931851,4.81957334,3868.5,3867.6,0.001]
[1753936932190,0.7404498,3868.4,3867.6,0.001]
[1753936932369,0.24230782,3868.3,3867.6,0.001]
[1753936932666,0.24230782,3868.2,3867.6,0.001]
[1753936932867,0.24230782,3868.1,3867.6,0.001]
[1753936933065,0.24230782,3868.0,3867.6,0.001]
[1753936933250,0.24230782,3867.9,3867.6,0.001]
[1753936933454,0.24230782,3867.8,3867.6,0.001]
[1753936933654,0.7404498,3868.4,3867.6,0.001]
[1753936933877,0.79840132,3868.3,3867.6,0.001]
[1753936934074,4.81957334,3867.9,3867.6,0.001]
[1753936934265,0.24239901,3867.8,3867.6,0.001]
[1753936934478,4.81957334,3867.9,3867.6,0.001]
[1753936934674,0.24240342,3867.8,3867.6,0.001]
[1753936934869,1.0071103,3867.7,3867.6,0.001]
[1753936935774,1.5571103,3867.7,3867.6,0.001]
[1753936937177,1.0071103,3867.7,3867.6,0.001]
[1753936937398,0.24237601,3867.7,3867.6,0.001]
[1753936938425,3.0,3868.2,3867.6,0.001]
[1753936939524,2.58500449,3868.5,3867.6,0.001]
[1753936939525,0.55,3868.4,3867.6,0.001]
[1753936939815,0.24225224,3868.3,3867.3,0.001]
[1753936940018,0.24225224,3868.2,3867.4,3.24075698]
[1753936940208,0.24225224,3868.1,3867.4,3.24075698]
[1753936940407,0.24225224,3868.0,3867.4,3.24075698]
[1753936940607,0.24225224,3867.9,3867.4,3.24075698]
[1753936940812,0.55,3868.4,3867.4,3.24075698]
[1753936941117,0.99345164,3868.3,3867.4,2.58567254]
[1753936941318,0.24225164,3868.2,3867.3,2.58676093]
[1753936941520,0.7512,3868.3,3867.3,2.58676093]
[1753936941521,0.24225164,3868.1,3867.4,2.58571342]
[1753936941720,0.7512,3868.3,3867.4,2.58571342]
[1753936941721,0.24225164,3868.0,3867.4,2.58571342]
[1753936941896,0.24225164,3867.9,3867.4,2.58571342]
[1753936942095,0.24225164,3867.8,3867.4,2.58571342]
[1753936942295,0.24225164,3867.7,3867.4,3.49936846]
[1753936942500,0.55,3868.5,3867.4,3.49936846]
[1753936942709,0.24220994,3868.4,3867.4,2.58571342]
[1753936942910,0.24220994,3868.3,3867.4,2.58571342]
[1753936943085,0.24220994,3868.2,3867.4,2.58571342]
[1753936943293,0.24220994,3868.1,3867.4,2.58571342]
[1753936943495,0.24220994,3868.0,3867.3,0.001]
[1753936943716,0.24220994,3867.9,3867.5,2.58564964]
[1753936943921,0.55,3868.5,3867.5,2.58564964]
[1753936944121,0.2422293,3868.4,3867.5,2.58564964]
[1753936944322,0.2422293,3868.3,3867.5,2.58564964]
[1753936944624,0.2422293,3868.2,3867.6,2.5855537]
[1753936944931,0.2422293,3868.1,3867.6,6.54356709]
[1753936945125,0.2422293,3868.0,3867.6,7.51740021]
[1753936945423,0.55,3868.5,3867.6,7.51740021]
[1753936945622,0.24223766,3868.4,3867.7,2.58549994]
[1753936945802,0.24223766,3868.3,3867.6,6.54356383]
[1753936946001,0.55,3868.5,3867.6,6.54356383]
[1753936946002,0.24223766,3868.2,3867.6,6.54356383]
[1753936946223,0.24224005,3868.1,3867.6,6.54356383]
[1753936946424,0.55,3868.5,3867.6,6.54356383]
[1753936946425,0.24224005,3868.0,3867.6,6.54356383]
[1753936946603,0.55,3868.5,3867.6,6.54356383]
[1753936946803,1.07919732,3868.4,3867.6,6.54356383]
[1753936947004,0.24223999,3868.3,3867.7,2.58550455]
[1753936947237,0.24223999,3868.2,3867.7,2.58550455]
[1753936947435,0.24223999,3868.1,3867.7,2.58550455]
[1753936947744,0.24223999,3868.0,3867.7,2.58550455]
[1753936947928,0.55,3868.5,3867.7,2.58550455]
[1753936948245,0.24225399,3868.4,3867.6,6.54355552]
[1753936948450,0.24225399,3868.3,3867.6,6.54355552]
[1753936948597,0.24225399,3868.2,3867.7,2.58550692]
[1753936948796,1.78265733,3868.5,3867.6,3.958]
[1753936948797,0.24225399,3868.1,3867.6,3.958]
[1753936949000,0.24225399,3868.0,3867.8,2.58540218]
[1753936949244,0.55,3868.7,3867.8,0.91289831]
[1753936949405,0.2422524,3868.6,3867.9,2.58533903]
[1753936949610,0.2422524,3868.5,3867.9,2.58533903]
[1753936949840,0.2422524,3868.4,3867.9,2.58533903]
[1753936950007,0.2422524,3868.3,3867.9,2.58533903]
[1753936950218,3.55,3869.0,3867.9,2.58533903]
[1753936950219,0.2422524,3868.2,3867.9,2.58533903]
[1753936950545,0.2422524,3868.1,3867.6,3.958]
[1753936950729,3.55,3869.0,3867.6,3.958]
[1753936950730,0.2422524,3868.0,3867.6,3.958]
[1753936950902,4.81957334,3868.7,3867.6,6.54357271]
[1753936951108,0.72421673,3868.6,3867.6,6.54357271]
[1753936951322,0.2422594,3868.5,3867.6,6.54357271]
[1753936951647,0.2422594,3868.4,3867.6,3.958]
[1753936951848,0.2422594,3868.3,3867.6,3.958]
[1753936952138,0.2422594,3868.2,3867.6,3.958]
[1753936952315,0.2422594,3868.1,3867.6,3.958]
[1753936952517,0.48195733,3868.6,3867.6,6.543581]
[1753936952699,0.77241342,3868.5,3867.6,6.543581]
[1753936952907,0.24226035,3868.4,3867.6,6.543581]
[1753936953216,0.24226119,3868.3,3867.7,2.58551415]
[1753936953415,0.24226119,3868.2,3867.8,2.58543631]
[1753936953624,0.53015307,3868.5,3867.6,3.958]
[1753936953625,0.53015307,3868.5,3867.6,6.54352171]
[1753936953946,0.24226119,3868.4,3867.8,2.58540808]
[1753936954147,0.24226119,3868.3,3867.8,2.58540808]
[1753936954444,0.24226119,3868.2,3867.8,2.58540808]
[1753936954649,4.81957334,3868.7,3867.6,6.54352171]
[1753936954650,4.81957334,3868.7,3867.7,2.58550139]
[1753936954954,0.72421851,3868.6,3867.7,2.58550139]
[1753936955116,0.24226118,3868.5,3867.6,6.54356335]
[1753936955315,0.48195733,3868.6,3867.6,6.54356335]
[1753936955316,0.24226118,3868.4,3867.6,6.54356335]
[1753936955553,0.24226118,3868.3,3867.7,2.58551553]
[1753936955859,0.24226529,3868.2,3867.6,6.54355726]
[1753936956029,0.48195733,3868.6,3867.7,2.58550152]
[1753936956350,0.77242865,3868.5,3867.7,2.58550152]
[1753936956552,0.24227558,3868.4,3867.7,2.58550152]
[1753936956727,0.24227558,3868.3,3867.7,2.58550152]
[1753936956910,0.24227558,3868.2,3867.7,2.58550152]
[1753936957116,0.53015307,3868.5,3867.7,2.58550152]
[1753936957320,0.77726326,3868.4,3867.7,2.58550152]
[1753936957540,0.24229062,3868.3,3867.7,2.58550152]
[1753936957716,0.24229062,3868.2,3867.7,2.58550152]
[1753936957920,0.24229062,3868.1,3867.7,2.58550152]
[1753936958122,4.81957334,3868.7,3867.7,2.58550152]
[1753936958323,0.24229012,3868.6,3867.7,2.58550152]
[1753936958543,0.74847647,3868.5,3867.7,2.58550152]
[1753936958746,0.24229012,3868.4,3867.7,2.58550152]
[1753936958933,0.24229012,3868.3,3867.7,2.58550152]
[1753936959130,0.24229012,3868.2,3867.6,6.54356276]
[1753936959335,0.50618635,3868.5,3867.6,6.54356276]
[1753936959530,0.77485989,3868.4,3867.7,2.58551025]
[1753936959734,0.24228392,3868.3,3867.8,2.58544675]
[1753936959934,0.24228392,3868.2,3867.7,2.58548894]
[1753936960156,0.24229278,3868.1,3867.7,2.58548894]
[1753936960361,0.53257597,3868.4,3867.7,2.58548894]
[1753936960571,0.2422952,3868.3,3867.7,2.58548894]
[1753936960731,0.2422952,3868.2,3867.7,2.58548894]
[1753936960930,0.2422952,3868.1,3867.7,2.58548894]
[1753936961129,0.53257597,3868.4,3867.7,2.58548894]
[1753936961443,0.24229241,3868.3,3867.6,3.958]
[1753936961762,0.24229241,3868.3,3867.4,6.83570036]
[1753936961763,0.24229241,3868.2,3867.4,6.83570036]
[1753936961924,0.24229241,3868.1,3867.4,6.83570036]
[1753936962125,0.24229241,3868.0,3867.5,3.956]
[1753936962326,0.55944417,3868.3,3867.5,6.54164333]
[1753936962670,0.24230634,3868.2,3867.5,6.54164333]
[1753936962834,0.24230634,3868.1,3867.5,6.54164333]
[1753936963028,0.24230634,3868.0,3867.5,3.956]
[1753936963383,0.24230634,3867.9,3867.5,3.956]
[1753936963572,0.24230634,3867.8,3867.5,3.956]
[1753936963871,0.56213238,3868.2,3867.5,3.956]
[1753936964072,0.7804823,3868.1,3867.5,3.956]
[1753936964253,0.24231173,3868.0,3867.5,3.956]
[1753936964453,0.24231173,3867.9,3867.5,3.956]
[1753936964788,0.24231173,3867.8,3867.4,4.25]
[1753936965075,0.24231173,3867.7,3867.5,3.956]
[1753936965278,4.81957334,3868.0,3867.5,3.956]
[1753936965583,0.77810747,3867.9,3867.5,3.956]
[1753936965788,4.81957334,3867.6,3867.5,3.956]
[1753936965984,5.06190642,3867.6,3867.5,3.956]
[1753936966280,5.06190642,3867.6,3867.4,4.25]
[1753936966435,0.24233308,3867.5,3867.4,4.25]
[1753936967491,0.24233308,3867.5,3867.3,3.957]
[1753936967780,0.24233308,3867.4,3867.3,3.957]
[1753936969379,0.53577439,3867.9,3867.3,3.957]
[1753936969575,0.77779941,3867.8,3867.3,3.957]
[1753936969807,0.24226464,3867.7,3867.4,3.956]
[1753936970107,0.53553477,3867.8,3867.4,3.956]
[1753936970274,0.24220149,3867.7,3867.4,3.956]
[1753936971199,0.53553477,3867.8,3867.4,3.956]
[1753936971512,1.32768325,3867.7,3867.3,0.001]
[1753936971658,1.08551081,3867.7,3867.3,0.001]
[1753936972504,0.53551081,3867.7,3867.3,0.001]
[1753936972806,4.506,3868.2,3867.3,0.001]
[1753936973003,0.55,3868.0,3867.3,0.001]
[1753936973205,0.24216219,3867.9,3867.3,0.001]
[1753936973518,0.24216219,3867.8,3867.3,0.001]
[1753936973660,0.24216219,3867.7,3867.3,0.001]
[1753936974003,0.24216219,3867.6,3867.3,0.001]
[1753936974301,0.55,3868.1,3867.3,0.001]
[1753936974457,0.55,3867.9,3867.3,0.001]
[1753936974656,0.24213336,3867.8,3867.3,0.001]
[1753936974857,0.24213336,3867.7,3867.3,0.001]
[1753936975057,0.24213336,3867.6,3867.3,0.001]
[1753936975287,0.7506,3868.0,3867.3,0.001]
[1753936975610,1.01277889,3867.9,3867.3,0.001]
[1753936975765,0.24211889,3867.8,3867.3,0.001]
[1753936975965,0.24211889,3867.7,3867.3,0.001]
[1753936976308,0.24211889,3867.6,3867.3,0.001]
[1753936976464,0.24211889,3867.5,3867.3,0.001]
[1753936976666,0.77066,3867.9,3867.3,0.001]
[1753936976968,0.61916672,3867.8,3867.3,0.001]
[1753936977265,0.24210072,3867.7,3867.3,0.001]
[1753936977464,0.24210072,3867.6,3867.3,0.001]
[1753936977664,0.24210072,3867.5,3867.3,0.001]
[1753936977886,0.377066,3867.8,3867.3,0.001]
[1753936978085,0.24208891,3867.7,3867.3,0.001]
[1753936978287,0.24208891,3867.6,3867.3,0.001]
[1753936978488,0.24208891,3867.5,3867.3,0.001]
[1753936978684,0.377066,3867.8,3867.3,0.001]
[1753936978997,0.24208856,3867.7,3867.3,0.001]
[1753936979192,0.24208856,3867.6,3867.3,0.001]
[1753936979368,0.77066,3867.9,3867.3,0.001]
[1753936979580,0.61934981,3867.8,3867.3,0.001]
[1753936979896,0.24208381,3867.7,3867.3,0.001]
[1753936980097,0.24208381,3867.6,3867.3,0.001]
[1753936980262,0.377266,3867.8,3867.3,0.001]
[1753936980461,0.24208673,3867.7,3867.3,0.001]
[1753936980662,0.24208673,3867.6,3867.3,0.001]
[1753936980898,0.002,3868.1,3867.3,0.001]
[1753936981108,0.24208966,3868.0,3867.3,0.001]
[1753936981303,0.24208966,3867.9,3867.3,0.001]
[1753936981509,0.24208966,3867.8,3867.3,0.001]
[1753936981708,0.24208966,3867.7,3867.3,0.001]
[1753936981913,0.24208966,3867.6,3867.3,2.58677289]
[1753936982087,0.002,3868.1,3867.3,0.001]
[1753936982291,0.99286422,3868.0,3867.3,0.001]
[1753936982494,0.24206422,3867.9,3867.3,0.001]
[1753936982692,0.24206422,3867.8,3867.3,0.001]
[1753936982894,0.24206422,3867.7,3867.3,0.001]
[1753936983091,0.24206422,3867.6,3867.3,0.001]
[1753936983294,0.7508,3868.0,3867.3,0.001]
[1753936983499,0.37238738,3867.9,3867.3,0.001]
[1753936983700,0.24210738,3867.8,3867.3,0.001]
[1753936984015,0.24210738,3867.7,3867.3,0.001]
[1753936984317,0.24210738,3867.6,3867.3,0.001]
[1753936984481,0.13028,3867.9,3867.3,0.001]
[1753936984684,0.24213569,3867.8,3867.3,0.001]
[1753936984881,0.24213569,3867.7,3867.3,0.001]
[1753936985083,0.24213569,3867.6,3867.3,0.001]
[1753936985282,0.13028,3867.9,3867.3,0.001]
[1753936985506,0.24215401,3867.8,3867.3,0.001]
[1753936985719,0.24215401,3867.7,3867.3,0.001]
[1753936986016,0.24215401,3867.6,3867.3,0.001]
[1753936986216,0.13028,3867.9,3867.3,0.001]
[1753936986416,0.24220723,3867.8,3867.3,0.001]
[1753936986618,0.24220723,3867.7,3867.3,0.001]
[1753936986913,0.24220723,3867.6,3867.3,0.001]
[1753936987117,0.24220723,3867.5,3867.3,0.001]
[1753936987330,0.13028,3867.9,3867.3,0.001]
[1753936987524,0.24224863,3867.8,3867.3,0.001]
[1753936987828,0.24224863,3867.7,3867.3,0.001]
[1753936988030,0.24224863,3867.6,3867.3,0.001]
[1753936988198,0.13028,3867.9,3867.3,0.001]
[1753936988396,0.73746554,3867.8,3867.3,0.001]